[Event "Nordic Chess-ch 2019"]
[Site "Sarpsborg"]
[Date "2019.06.23"]
[Round "4.25"]
[White "Skaar, Ben Samuel Groth"]
[Black "Dingertz, Erik"]
[Result "1/2-1/2"]
[ECO "C54"]
[WhiteElo "1362"]
[BlackElo "1969"]
[Annotator "NA"]
[PlyCount "66"]
[EventDate "2019.06.21"]
[EventType "swiss"]
[EventCountry "NOR"]
[SourceTitle "playchess.com"]
[Source "ChessBase"]
[SourceQuality "1"]
[TimeControl "40/5400+30:1800+30"]

1. e4 {[%emt 0:00:00]} e5 {[%emt 0:00:51]} 2. Nf3 {[%emt 0:00:00]} Nc6 {[%emt 0:00:11]} 3. Bc4 {[%emt 0:00:00]} Bc5 {[%emt 0:00:21]} 4. c3 {[%emt 0:00:00]} Nf6 {[%emt 0:00:05]} 5. d3 {[%emt 0:00:04]} O-O {[%emt 0:00:17]} 6. O-O {[%emt 0:00:07]} d5 {[%emt 0:00:09]} 7. exd5 {[%emt 0:01:11]} Nxd5 {[%emt 0:00:38]} 8. d4 {[%emt 0:00:53]} exd4 {[%emt 0:04:16]} 9. cxd4 {[%emt 0:00:13]} Bd6 {[%emt 0:01:14]} 10. Bxd5 {[%emt 0:00:32]} Bxh2+ {[%emt 0:00:19]} 11. Nxh2 {[%emt 0:00:19]} Qxd5 {[%emt 0:00:04]} 12. Be3 {[%emt 0:00:28]} Bf5 {[%emt 0:01:58]} 13. Nc3 {[%emt 0:01:24]} Qd7 {[%emt 0:00:29]} 14. Qd2 {[%emt 0:05:05]} Rad8 {[%emt 0:01:46]} 15. Rad1 {[%emt 0:00:37]} Nb4 {[%emt 0:01:18]} 16. a3 {[%emt 0:02:22]} Nc2 {[%emt 0:01:25]} 17. Rc1 {[%emt 0:01:18]} Nxd4 {[%emt 0:03:24]} 18. Qxd4 {[%emt 0:01:12]} Qxd4 {[%emt 0:00:09]} 19. Bxd4 {[%emt 0:00:08]} Rxd4 {[%emt 0:00:07]} 20. Nf3 {[%emt 0:00:30]} Rdd8 {[%emt 0:03:07]} 21. Rfd1 {[%emt 0:01:16]} c6 {[%emt 0:01:38]} 22. Rxd8 {[%emt 0:01:23]} Rxd8 {[%emt 0:00:04]} 23. Re1 {[%emt 0:02:20]} Kf8 {[%emt 0:00:33]} 24. Ne4 {[%emt 0:11:03]} Bg4 {[%emt 0:06:17]} 25. Ne5 {[%emt 0:06:42]} Be6 {[%emt 0:00:30]} 26. Ng5 {[%emt 0:02:21]} Ba2 {[%emt 0:04:57]} 27. Nef3 {[%emt 0:01:55]} f6 {[%emt 0:00:54]} 28. Ne6+ {[%emt 0:00:56]} Bxe6 {[%emt 0:00:05]} 29. Rxe6 {[%emt 0:00:06]} Kf7 {[%emt 0:01:24]} 30. Re1 {[%emt 0:03:55]} g5 {[%emt 0:02:41]} 31. g4 {[%emt 0:03:55]} Rd3 {[%emt 0:01:53]} 32. Re3 {[%emt 0:00:30]} Rd5 {[%emt 0:13:11]} 33. Re4 {[%emt 0:12:03]} Kg6 {[%emt 0:03:51]} 1/2-1/2

[Event "Nordic Chess-ch 2019"]
[Site "Sarpsborg"]
[Date "2019.06.23"]
[Round "4.26"]
[White "Schouten, Mathias Lind"]
[Black "Blauhut, Anna"]
[Result "1-0"]
[ECO "C54"]
[WhiteElo "1967"]
[BlackElo "1156"]
[Annotator "NA"]
[PlyCount "63"]
[EventDate "2019.06.21"]
[EventType "swiss"]
[EventCountry "NOR"]
[SourceTitle "playchess.com"]
[Source "ChessBase"]
[SourceQuality "1"]
[TimeControl "40/5400+30:1800+30"]

1. e4 {[%emt 0:00:00]} e5 {[%emt 0:00:00]} 2. Nf3 {[%emt 0:00:00]} Nc6 {[%emt 0:00:00]} 3. Bc4 {[%emt 0:00:00]} Bc5 {[%emt 0:00:09]} 4. O-O {[%emt 0:00:00]} Nf6 {[%emt 0:00:14]} 5. d3 {[%emt 0:00:26]} d6 {[%emt 0:00:31]} 6. c3 {[%emt 0:00:20]} h6 {[%emt 0:00:25]} 7. a4 {[%emt 0:00:28]} a5 {[%emt 0:00:51]} 8. Be3 {[%emt 0:03:32]} Bxe3 {[%emt 0:01:28]} 9. fxe3 {[%emt 0:00:05]} O-O {[%emt 0:01:11]} 10. Nbd2 {[%emt 0:02:17]} Be6 {[%emt 0:02:30]} 11. Bxe6 {[%emt 0:00:15]} fxe6 {[%emt 0:00:36]} 12. Qb3 {[%emt 0:00:09]} Qd7 {[%emt 0:02:04]} 13. d4 {[%emt 0:03:57]} b6 {[%emt 0:05:48]} 14. Rad1 {[%emt 0:00:38]} Qe7 {[%emt 0:01:10]} 15. Qc4 {[%emt 0:28:25]} Nd8 {[%emt 0:02:45]} 16. dxe5 {[%emt 0:01:33]} dxe5 {[%emt 0:00:38]} 17. Nxe5 {[%emt 0:00:15]} Kh7 {[%emt 0:03:06]} 18. Nd3 {[%emt 0:24:12]} e5 {[%emt 0:05:08]} 19. Nf3 {[%emt 0:06:48]} Nf7 {[%emt 0:02:23]} 20. Nh4 {[%emt 0:02:11]} Nd6 {[%emt 0:05:41]} 21. Qc6 {[%emt 0:00:04]} Nfxe4 {[%emt 0:01:37]} 22. Nf5 {[%emt 0:00:41]} Nxf5 {[%emt 0:01:26]} 23. Qxe4 {[%emt 0:00:10]} Qf6 {[%emt 0:01:33]} 24. g4 {[%emt 0:00:31]} Qg5 {[%emt 0:03:48]} 25. Rxf5 {[%emt 0:00:06]} Rxf5 {[%emt 0:00:08]} 26. Qxf5+ {[%emt 0:00:04]} Qxf5 {[%emt 0:00:19]} 27. gxf5 {[%emt 0:00:04]} Rd8 {[%emt 0:00:59]} 28. e4 {[%emt 0:26:49]} c5 {[%emt 0:02:09]} 29. Kf1 {[%emt 0:00:00]} c4 {[%emt 0:00:51]} 30. Nf2 {[%emt 0:00:00]} Rxd1+ {[%emt 0:00:12]} 31. Nxd1 {[%emt 0:01:30]} Kg8 {[%emt 0:00:39]} 32. Ne3 {[%emt 0:00:00]} 1-0

[Event "Nordic Chess-ch 2019"]
[Site "Sarpsborg"]
[Date "2019.06.23"]
[Round "4.27"]
[White "Stabbetorp, Jon Anders"]
[Black "Dingertz, Filip"]
[Result "1-0"]
[ECO "C44"]
[WhiteElo "1817"]
[BlackElo "1111"]
[Annotator "NA"]
[PlyCount "77"]
[EventDate "2019.06.21"]
[EventType "swiss"]
[EventCountry "NOR"]
[SourceTitle "playchess.com"]
[Source "ChessBase"]
[SourceQuality "1"]
[TimeControl "40/5400+30:1800+30"]

1. e4 {[%emt 0:01:11]} e5 {[%emt 0:00:00]} 2. Nf3 {[%emt 0:00:10]} Nc6 {[%emt 0:00:00]} 3. c3 {[%emt 0:00:18]} Nf6 {[%emt 0:00:42]} 4. d4 {[%emt 0:00:23]} exd4 {[%emt 0:00:32]} 5. e5 {[%emt 0:00:07]} Qe7 {[%emt 0:07:12]} 6. cxd4 {[%emt 0:01:35]} d6 {[%emt 0:00:57]} 7. Bb5 {[%emt 0:00:53]} Bd7 {[%emt 0:00:35]} 8. Bxc6 {[%emt 0:01:07]} Bxc6 {[%emt 0:00:08]} 9. O-O {[%emt 0:00:21]} dxe5 {[%emt 0:00:20]} 10. Nxe5 {[%emt 0:01:00]} Qe6 {[%emt 0:01:55]} 11. Nxc6 {[%emt 0:04:06]} Qxc6 {[%emt 0:02:39]} 12. Re1+ {[%emt 0:01:42]} Be7 {[%emt 0:00:18]} 13. Qe2 {[%emt 0:00:54]} Qd6 {[%emt 0:03:26]} 14. Bf4 {[%emt 0:00:42]} Qd7 {[%emt 0:00:57]} 15. Nc3 {[%emt 0:01:13]} Kf8 {[%emt 0:02:29]} 16. Rad1 {[%emt 0:20:09]} Re8 {[%emt 0:04:51]} 17. Qf3 {[%emt 0:19:14]} c6 {[%emt 0:06:21]} 18. d5 {[%emt 0:00:58]} cxd5 {[%emt 0:00:55]} 19. Nxd5 {[%emt 0:00:28]} Nxd5 {[%emt 0:00:11]} 20. Rxd5 {[%emt 0:00:26]} Qc6 {[%emt 0:01:42]} 21. Rde5 {[%emt 0:03:53]} Qxf3 {[%emt 0:00:48]} 22. gxf3 {[%emt 0:00:07]} f6 {[%emt 0:00:14]} 23. Rxe7 {[%emt 0:00:13]} Rxe7 {[%emt 0:00:21]} 24. Bd6 {[%emt 0:00:10]} Kf7 {[%emt 0:00:20]} 25. Rxe7+ {[%emt 0:00:09]} Kg6 {[%emt 0:00:55]} 26. Rxb7 {[%emt 0:00:11]} Rd8 {[%emt 0:00:25]} 27. Bc5 {[%emt 0:00:44]} a6 {[%emt 0:00:57]} 28. Ra7 {[%emt 0:00:13]} Rd5 {[%emt 0:00:15]} 29. Bb6 {[%emt 0:00:23]} Rd2 {[%emt 0:00:42]} 30. Rxa6 {[%emt 0:00:24]} Rxb2 {[%emt 0:00:18]} 31. a4 {[%emt 0:00:06]} Ra2 {[%emt 0:00:31]} 32. a5 {[%emt 0:00:08]} Kf5 {[%emt 0:00:48]} 33. Be3 {[%emt 0:00:21]} Ke5 {[%emt 0:00:31]} 34. Ra8 {[%emt 0:00:34]} Kd6 {[%emt 0:00:27]} 35. a6 {[%emt 0:00:09]} Kc6 {[%emt 0:00:42]} 36. a7 {[%emt 0:00:11]} Kb7 {[%emt 0:00:54]} 37. Rg8 {[%emt 0:00:10]} g6 {[%emt 0:00:28]} 38. Rg7+ {[%emt 0:00:10]} Kc6 {[%emt 0:00:29]} 39. Rxh7 {[%emt 0:00:10]} 1-0

[Event "Nordic Chess-ch 2019"]
[Site "Sarpsborg"]
[Date "2019.06.23"]
[Round "4.28"]
[White "Haggar, Haytham"]
[Black "Kro, Andreas Fuskeland"]
[Result "0-1"]
[ECO "D10"]
[WhiteElo "1309"]
[BlackElo "1565"]
[Annotator "NA"]
[PlyCount "64"]
[EventDate "2019.06.21"]
[EventType "swiss"]
[EventCountry "NOR"]
[SourceTitle "playchess.com"]
[Source "ChessBase"]
[SourceQuality "1"]
[TimeControl "40/5400+30:1800+30"]

1. d4 {[%emt 0:00:00]} d5 {[%emt 0:00:00]} 2. c4 {[%emt 0:00:00]} c6 {[%emt 0:00:00]} 3. e3 {[%emt 0:01:45]} Nf6 {[%emt 0:00:21]} 4. Nc3 {[%emt 0:00:23]} dxc4 {[%emt 0:01:31]} 5. Bxc4 {[%emt 0:00:26]} b5 {[%emt 0:00:21]} 6. Bb3 {[%emt 0:01:36]} Bb7 {[%emt 0:01:42]} 7. f3 {[%emt 0:02:20]} e6 {[%emt 0:03:38]} 8. Nge2 {[%emt 0:00:29]} Nbd7 {[%emt 0:03:14]} 9. O-O {[%emt 0:01:38]} a6 {[%emt 0:04:20]} 10. Kh1 {[%emt 0:04:03]} c5 {[%emt 0:05:51]} 11. a4 {[%emt 0:05:00]} b4 {[%emt 0:04:52]} 12. Nb1 {[%emt 0:03:38]} a5 {[%emt 0:06:53]} 13. Bc4 {[%emt 0:02:21]} Qc7 {[%emt 0:05:17]} 14. e4 {[%emt 0:11:21]} cxd4 {[%emt 0:03:34]} 15. Qxd4 {[%emt 0:02:17]} Bc5 {[%emt 0:01:00]} 16. Qd3 {[%emt 0:00:59]} O-O {[%emt 0:04:50]} 17. Bf4 {[%emt 0:02:30]} e5 {[%emt 0:00:40]} 18. Bg5 {[%emt 0:02:41]} h6 {[%emt 0:07:39]} 19. Bh4 {[%emt 0:02:11]} Rfd8 {[%emt 0:01:49]} 20. Qb3 {[%emt 0:05:33]} Nb6 {[%emt 0:02:42]} 21. Bxf6 {[%emt 0:03:08]} gxf6 {[%emt 0:00:08]} 22. Rc1 {[%emt 0:11:50]} Nxc4 {[%emt 0:04:54]} 23. Rxc4 {[%emt 0:07:16]} Ba6 {[%emt 0:01:38]} 24. Rc1 {[%emt 0:03:22]} Bxe2 {[%emt 0:01:01]} 25. Qc2 {[%emt 0:00:53]} Ba6 {[%emt 0:00:50]} 26. Nd2 {[%emt 0:01:57]} Rac8 {[%emt 0:03:50]} 27. h3 {[%emt 0:06:08]} Qd7 {[%emt 0:04:22]} 28. Nc4 {[%emt 0:05:12]} Bxc4 {[%emt 0:01:19]} 29. Qxc4 {[%emt 0:02:58]} Be3 {[%emt 0:00:49]} 30. Qf1 {[%emt 0:02:58]} Rxc1 {[%emt 0:00:23]} 31. Rxc1 {[%emt 0:00:07]} Bxc1 {[%emt 0:00:07]} 32. Qxc1 {[%emt 0:00:31]} Qd1+ {[%emt 0:00:17]} 0-1

[Event "Nordic Chess-ch 2019"]
[Site "Sarpsborg"]
[Date "2019.06.23"]
[Round "4.29"]
[White "Holand, Per Fredrik"]
[Black "Hoiom, Jonas"]
[Result "1-0"]
[ECO "B01"]
[WhiteElo "1883"]
[BlackElo "1317"]
[Annotator "NA"]
[PlyCount "83"]
[EventDate "2019.06.21"]
[EventType "swiss"]
[EventCountry "NOR"]
[SourceTitle "playchess.com"]
[Source "ChessBase"]
[SourceQuality "1"]
[TimeControl "40/5400+30:1800+30"]

1. e4 {[%emt 0:18:53]} d5 {[%emt 0:00:00]} 2. exd5 {[%emt 0:00:07]} Qxd5 {[%emt 0:00:00]} 3. Nf3 {[%emt 0:00:05]} Nf6 {[%emt 0:00:04]} 4. h3 {[%emt 0:00:20]} Bf5 {[%emt 0:00:22]} 5. Nc3 {[%emt 0:03:46]} Qa5 {[%emt 0:00:25]} 6. b4 {[%emt 0:01:22]} Qb6 {[%emt 0:03:14]} 7. Be2 {[%emt 0:06:17]} e6 {[%emt 0:00:40]} 8. a3 {[%emt 0:01:03]} c6 {[%emt 0:07:59]} 9. O-O {[%emt 0:02:51]} Nbd7 {[%emt 0:01:08]} 10. Na4 {[%emt 0:08:13]} Qc7 {[%emt 0:00:33]} 11. c4 {[%emt 0:01:13]} Be7 {[%emt 0:02:05]} 12. d4 {[%emt 0:01:22]} O-O {[%emt 0:00:30]} 13. Nh4 {[%emt 0:02:24]} Bg6 {[%emt 0:01:10]} 14. Nxg6 {[%emt 0:00:06]} hxg6 {[%emt 0:00:07]} 15. f4 {[%emt 0:05:52]} Ne4 {[%emt 0:01:47]} 16. Qb3 {[%emt 0:01:32]} g5 {[%emt 0:11:49]} 17. Qf3 {[%emt 0:04:04]} f5 {[%emt 0:08:49]} 18. Bd3 {[%emt 0:00:34]} Qd6 {[%emt 0:00:45]} 19. Bxe4 {[%emt 0:18:47]} Qxd4+ {[%emt 0:00:45]} 20. Be3 {[%emt 0:00:15]} fxe4 {[%emt 0:08:01]} 21. Qe2 {[%emt 0:00:14]} Qd6 {[%emt 0:01:04]} 22. Rad1 {[%emt 0:04:01]} Qc7 {[%emt 0:03:10]} 23. Qg4 {[%emt 0:00:35]} Rf5 {[%emt 0:06:44]} 24. fxg5 {[%emt 0:00:53]} Raf8 {[%emt 0:00:26]} 25. Rxf5 {[%emt 0:00:46]} exf5 {[%emt 0:00:19]} 26. Qh5 {[%emt 0:00:44]} Qg3 {[%emt 0:04:51]} 27. Bf2 {[%emt 0:04:48]} Qxg5 {[%emt 0:10:39]} 28. Qxg5 {[%emt 0:01:12]} Bxg5 {[%emt 0:00:02]} 29. Rxd7 {[%emt 0:00:09]} e3 {[%emt 0:00:10]} 30. Be1 {[%emt 0:00:31]} Re8 {[%emt 0:00:20]} 31. g3 {[%emt 0:01:01]} e2 {[%emt 0:00:23]} 32. Rd3 {[%emt 0:03:56]} Be3+ {[%emt 0:01:45]} 33. Kg2 {[%emt 0:00:12]} f4 {[%emt 0:00:09]} 34. Kf3 {[%emt 0:02:18]} Bc1 {[%emt 0:00:40]} 35. gxf4 {[%emt 0:00:49]} Rf8 {[%emt 0:00:49]} 36. Kxe2 {[%emt 0:00:19]} Rxf4 {[%emt 0:00:04]} 37. Bd2 {[%emt 0:00:43]} Rxc4 {[%emt 0:00:28]} 38. Bxc1 {[%emt 0:01:17]} Rxc1 {[%emt 0:00:03]} 39. Nc5 {[%emt 0:01:43]} b6 {[%emt 0:01:45]} 40. Ne4 {[%emt 0:01:14]} Rh1 {[%emt 0:00:19]} 41. Rc3 {[%emt 0:30:20]} Rh2+ {[%emt 0:30:56]} 42. Nf2 {[%emt 0:00:05]} 1-0

[Event "Nordic Chess-ch 2019"]
[Site "Sarpsborg"]
[Date "2019.06.23"]
[Round "4.30"]
[White "Pettersen, Morgan Buckholm"]
[Black "Asbjornsen, Jakob"]
[Result "1-0"]
[ECO "D35"]
[WhiteElo "1508"]
[BlackElo "1359"]
[Annotator "NA"]
[PlyCount "109"]
[EventDate "2019.06.21"]
[EventType "swiss"]
[EventCountry "NOR"]
[SourceTitle "playchess.com"]
[Source "ChessBase"]
[SourceQuality "1"]
[TimeControl "40/5400+30:1800+30"]

1. d4 {[%emt 0:00:00]} Nf6 {[%emt 0:00:00]} 2. c4 {[%emt 0:00:00]} e6 {[%emt 0:00:00]} 3. Nc3 {[%emt 0:00:00]} d5 {[%emt 0:00:00]} 4. cxd5 {[%emt 0:00:03]} exd5 {[%emt 0:00:15]} 5. Bg5 {[%emt 0:00:07]} Be7 {[%emt 0:00:21]} 6. e3 {[%emt 0:00:42]} Bf5 {[%emt 0:00:55]} 7. Bd3 {[%emt 0:02:29]} Qd7 {[%emt 0:01:31]} 8. Bxf6 {[%emt 0:08:45]} Bxf6 {[%emt 0:00:49]} 9. Bxf5 {[%emt 0:00:10]} Qxf5 {[%emt 0:00:13]} 10. Qb3 {[%emt 0:00:13]} Qc8 {[%emt 0:08:13]} 11. Nxd5 {[%emt 0:05:58]} Bg5 {[%emt 0:01:08]} 12. Nf3 {[%emt 0:01:55]} Bh6 {[%emt 0:00:54]} 13. Ne5 {[%emt 0:06:03]} Rf8 {[%emt 0:05:10]} 14. Rc1 {[%emt 0:07:09]} c6 {[%emt 0:04:37]} 15. O-O {[%emt 0:11:57]} Na6 {[%emt 0:09:35]} 16. Qd3 {[%emt 0:07:10]} f6 {[%emt 0:12:52]} 17. Nc4 {[%emt 0:07:54]} Qe6 {[%emt 0:04:07]} 18. Nf4 {[%emt 0:03:12]} Qd7 {[%emt 0:06:21]} 19. Qxh7 {[%emt 0:03:47]} O-O-O {[%emt 0:03:27]} 20. d5 {[%emt 0:07:46]} Bxf4 {[%emt 0:04:33]} 21. dxc6 {[%emt 0:00:45]} Bxh2+ {[%emt 0:02:02]} 22. Qxh2 {[%emt 0:00:07]} bxc6 {[%emt 0:00:20]} 23. Na5 {[%emt 0:05:15]} Nb8 {[%emt 0:02:44]} 24. Qf4 {[%emt 0:03:31]} Rh8 {[%emt 0:01:50]} 25. Qf3 {[%emt 0:01:09]} Qc7 {[%emt 0:02:52]} 26. Qf5+ {[%emt 0:00:36]} Rd7 {[%emt 0:00:52]} 27. g3 {[%emt 0:00:34]} Kd8 {[%emt 0:01:28]} 28. Rfd1 {[%emt 0:03:28]} Rxd1+ {[%emt 0:03:53]} 29. Rxd1+ {[%emt 0:00:05]} Nd7 {[%emt 0:00:29]} 30. Nb3 {[%emt 0:01:29]} Kc8 {[%emt 0:01:03]} 31. Nc5 {[%emt 0:01:08]} Rd8 {[%emt 0:00:15]} 32. Nxd7 {[%emt 0:02:43]} Rxd7 {[%emt 0:00:18]} 33. Rxd7 {[%emt 0:00:06]} Qxd7 {[%emt 0:00:08]} 34. Qxd7+ {[%emt 0:00:14]} Kxd7 {[%emt 0:00:05]} 35. Kf1 {[%emt 0:00:16]} Kd6 {[%emt 0:00:34]} 36. Ke2 {[%emt 0:00:17]} Kd5 {[%emt 0:00:31]} 37. Kd3 {[%emt 0:00:12]} f5 {[%emt 0:00:25]} 38. f3 {[%emt 0:01:01]} g6 {[%emt 0:00:46]} 39. e4+ {[%emt 0:03:18]} fxe4+ {[%emt 0:00:54]} 40. fxe4+ {[%emt 0:00:09]} Ke5 {[%emt 0:00:16]} 41. b4 {[%emt 0:30:48]} g5 {[%emt 0:31:13]} 42. Ke3 {[%emt 0:00:36]} g4 {[%emt 0:00:32]} 43. a3 {[%emt 0:00:42]} a6 {[%emt 0:01:45]} 44. Kd3 {[%emt 0:00:09]} Ke6 {[%emt 0:00:34]} 45. Kd4 {[%emt 0:01:00]} Kd6 {[%emt 0:00:23]} 46. e5+ {[%emt 0:00:06]} Ke6 {[%emt 0:00:09]} 47. Ke4 {[%emt 0:00:11]} Kd7 {[%emt 0:00:32]} 48. Kf5 {[%emt 0:00:42]} Ke7 {[%emt 0:00:16]} 49. Kxg4 {[%emt 0:00:09]} Ke6 {[%emt 0:00:12]} 50. Kf4 {[%emt 0:00:13]} a5 {[%emt 0:00:39]} 51. g4 {[%emt 0:00:55]} axb4 {[%emt 0:00:21]} 52. axb4 {[%emt 0:00:07]} Kd5 {[%emt 0:00:08]} 53. g5 {[%emt 0:00:23]} Kc4 {[%emt 0:00:06]} 54. e6 {[%emt 0:00:08]} Kxb4 {[%emt 0:00:06]} 55. e7 {[%emt 0:00:09]} 1-0

[Event "Nordic Chess-ch 2019"]
[Site "Sarpsborg"]
[Date "2019.06.23"]
[Round "4.31"]
[White "Dogani, Avduraim"]
[Black "Ulrichsen, Jarl H"]
[Result "0-1"]
[ECO "B12"]
[WhiteElo "2107"]
[BlackElo "2180"]
[Annotator "NA"]
[PlyCount "88"]
[EventDate "2019.06.21"]
[EventType "swiss"]
[EventCountry "NOR"]
[SourceTitle "playchess.com"]
[Source "ChessBase"]
[SourceQuality "1"]
[TimeControl "40/5400+30:1800+30"]

1. e4 {[%emt 0:00:00]} c6 {[%emt 0:04:07]} 2. d4 {[%emt 0:01:12]} d5 {[%emt 0:00:07]} 3. Bd3 {[%emt 0:00:56]} dxe4 {[%emt 0:00:29]} 4. Bxe4 {[%emt 0:00:09]} Nf6 {[%emt 0:01:34]} 5. Bf3 {[%emt 0:00:13]} Bf5 {[%emt 0:01:18]} 6. Ne2 {[%emt 0:00:35]} e6 {[%emt 0:01:40]} 7. Ng3 {[%emt 0:00:18]} Bg6 {[%emt 0:00:23]} 8. c3 {[%emt 0:00:50]} Qc7 {[%emt 0:05:49]} 9. Nd2 $11 {[%emt 0:02:29]} Nbd7 {[%emt 0:03:59]} 10. Nc4 {[%emt 0:02:37]} Be7 {[%emt 0:02:45]} 11. Ne2 {[%emt 0:00:31]} Nd5 {[%emt 0:06:46]} 12. g3 {[%emt 0:00:30]} O-O {[%emt 0:09:43]} 13. h4 {[%emt 0:01:47]} h6 {[%emt 0:07:17]} 14. Nf4 {[%emt 0:00:59]} Bh7 {[%emt 0:10:38]} 15. Qe2 {[%emt 0:00:18]} b5 {[%emt 0:08:00]} 16. Ne5 {[%emt 0:02:39]} Bd6 {[%emt 0:05:34]} 17. Nfd3 {[%emt 0:04:07]} Rae8 {[%emt 0:04:10]} 18. Nxd7 {[%emt 0:14:52]} Qxd7 {[%emt 0:00:09]} 19. O-O {[%emt 0:00:21]} Qc7 {[%emt 0:02:46]} 20. Ne5 {[%emt 0:01:21]} f6 {[%emt 0:04:51]} 21. Ng4 {[%emt 0:03:24]} Qd7 {[%emt 0:07:18]} 22. Ne3 {[%emt 0:01:54]} Nxe3 {[%emt 0:00:23]} 23. Bxe3 {[%emt 0:00:18]} f5 {[%emt 0:05:51]} 24. Bd2 {[%emt 0:04:23]} e5 {[%emt 0:01:24]} 25. dxe5 {[%emt 0:04:14]} Bxe5 {[%emt 0:00:07]} 26. Qd1 {[%emt 0:00:15]} Qc7 {[%emt 0:00:21]} 27. a4 {[%emt 0:08:31]} f4 {[%emt 0:01:09]} 28. g4 {[%emt 0:00:05]} Qe7 {[%emt 0:00:43]} 29. Kg2 {[%emt 0:02:51]} Qxh4 {[%emt 0:01:07]} 30. Rh1 {[%emt 0:00:03]} Qg5 {[%emt 0:00:28]} 31. Rh5 {[%emt 0:00:17]} Qf6 {[%emt 0:00:18]} 32. axb5 {[%emt 0:00:22]} cxb5 {[%emt 0:00:31]} 33. Rxa7 {[%emt 0:00:37]} Bg6 {[%emt 0:00:19]} 34. Qb3+ {[%emt 0:01:20]} Kh8 {[%emt 0:00:29]} 35. Rh1 {[%emt 0:03:24]} Rd8 {[%emt 0:00:16]} 36. Bc1 {[%emt 0:01:53]} Bd3 {[%emt 0:02:55]} 37. Qa3 {[%emt 0:01:55]} Be2 {[%emt 0:00:53]} 38. c4 {[%emt 0:03:23]} Rd3 {[%emt 0:00:15]} 39. Qxd3 {[%emt 0:02:33]} Bxd3 {[%emt 0:00:02]} 40. cxb5 {[%emt 0:00:42]} Bxb5 {[%emt 0:00:12]} 41. Re1 {[%emt 0:30:27]} Bc6 {[%emt 0:31:01]} 42. Ra3 {[%emt 0:01:13]} Bxf3+ {[%emt 0:00:36]} 43. Rxf3 {[%emt 0:00:29]} Qh4 {[%emt 0:01:22]} 44. Rd3 {[%emt 0:01:26]} f3+ {[%emt 0:00:00]} 0-1

[Event "Nordic Chess-ch 2019"]
[Site "Sarpsborg"]
[Date "2019.06.23"]
[Round "4.32"]
[White "Store, Trond"]
[Black "Eriksson, Kristian"]
[Result "0-1"]
[ECO "A99"]
[WhiteElo "2100"]
[BlackElo "2111"]
[Annotator "NA"]
[PlyCount "80"]
[EventDate "2019.06.21"]
[EventType "swiss"]
[EventCountry "NOR"]
[SourceTitle "playchess.com"]
[Source "ChessBase"]
[SourceQuality "1"]
[TimeControl "40/5400+30:1800+30"]

1. Nf3 {[%emt 0:02:47]} e6 {[%emt 0:01:26]} 2. c4 {[%emt 0:00:27]} f5 {[%emt 0:01:04]} 3. Nc3 {[%emt 0:05:32]} Nf6 {[%emt 0:00:42]} 4. g3 {[%emt 0:07:12]} Be7 {[%emt 0:01:48]} 5. Bg2 {[%emt 0:00:17]} O-O {[%emt 0:00:33]} 6. O-O {[%emt 0:00:10]} d6 {[%emt 0:00:48]} 7. d4 {[%emt 0:00:09]} Qe8 {[%emt 0:01:54]} 8. b3 {[%emt 0:08:55]} Qh5 {[%emt 0:06:49]} 9. a3 {[%emt 0:09:44]} Ne4 {[%emt 0:22:42]} 10. Nxe4 {[%emt 0:03:41]} fxe4 {[%emt 0:00:03]} 11. Ne1 {[%emt 0:03:25]} d5 {[%emt 0:03:58]} 12. f3 {[%emt 0:01:29]} Nc6 {[%emt 0:04:11]} 13. Nc2 {[%emt 0:03:29]} dxc4 {[%emt 0:16:38]} 14. bxc4 {[%emt 0:00:39]} exf3 {[%emt 0:04:20]} 15. Bxf3 {[%emt 0:01:39]} Qg6 {[%emt 0:01:47]} 16. Bb2 {[%emt 0:20:32]} Bd7 {[%emt 0:03:35]} 17. e4 {[%emt 0:01:45]} Rad8 {[%emt 0:03:17]} 18. Qe2 {[%emt 0:01:37]} e5 {[%emt 0:02:48]} 19. d5 {[%emt 0:06:35]} Bc5+ {[%emt 0:00:33]} 20. Kg2 {[%emt 0:03:25]} Nd4 {[%emt 0:03:01]} 21. Nxd4 {[%emt 0:00:04]} Bxd4 {[%emt 0:00:53]} 22. Bxd4 {[%emt 0:00:28]} exd4 {[%emt 0:00:04]} 23. Qb2 {[%emt 0:09:43]} c5 {[%emt 0:03:20]} 24. Rae1 {[%emt 0:05:34]} Bg4 {[%emt 0:02:40]} 25. Bxg4 {[%emt 0:00:47]} Qxg4 {[%emt 0:00:03]} 26. Rxf8+ {[%emt 0:00:42]} Rxf8 {[%emt 0:00:28]} 27. Qe2 {[%emt 0:00:11]} Qxe2+ {[%emt 0:03:28]} 28. Rxe2 {[%emt 0:00:01]} b5 {[%emt 0:00:08]} 29. cxb5 {[%emt 0:02:09]} c4 {[%emt 0:00:12]} 30. e5 {[%emt 0:00:01]} c3 {[%emt 0:02:50]} 31. Rc2 {[%emt 0:00:11]} Rc8 {[%emt 0:02:31]} 32. d6 {[%emt 0:00:02]} Kf7 {[%emt 0:00:19]} 33. d7 {[%emt 0:02:30]} Rd8 {[%emt 0:00:23]} 34. Kf2 {[%emt 0:00:36]} Rxd7 {[%emt 0:01:02]} 35. Ke1 {[%emt 0:00:04]} Ke6 {[%emt 0:00:37]} 36. Kd1 {[%emt 0:00:55]} Kxe5 {[%emt 0:01:21]} 37. Rc1 {[%emt 0:00:02]} Kd5 {[%emt 0:00:43]} 38. Rb1 {[%emt 0:00:53]} Rf7 {[%emt 0:01:23]} 39. Ke2 {[%emt 0:00:16]} Ke4 {[%emt 0:02:29]} 40. Rb4 {[%emt 0:00:17]} Rc7 {[%emt 0:00:31]} 0-1